bitfinex/quotes_SOLUSD_20250307
["timestamp","ask_amount","ask_price","bid_price","bid_amount"]
[1741354279159,7.2258,145.31,145.13,19.07613357]
[1741354279374,60.71041941,145.3,145.16,0.14216157]
[1741354279559,60.71041941,145.26,145.16,0.14216157]
[1741354279763,17.5485,145.31,145.13,1.25995412]
[1741354279968,60.71041941,145.3,145.2,60.71041941]
[1741354280160,60.71041941,145.3,145.13,21.03345425]
[1741354280161,0.03,145.47,145.26,60.85258098]
[1741354280366,60.71041941,145.38,145.29,0.14216157]
[1741354280666,60.71041941,145.36,145.21,0.28432314]
[1741354280851,5.1567,145.44,145.28,0.14216157]
[1741354281255,60.71041941,145.3,145.23,0.14216157]
[1741354281478,20.0,145.34,145.15,18.64964886]
[1741354281679,20.0,145.32,145.15,26.36593482]
[1741354281884,20.0,145.32,145.15,7.71628596]
[1741354282080,20.0,145.28,145.15,7.71628596]
[1741354282282,60.71041941,145.17,145.15,7.71628596]
[1741354282483,20.0,145.21,145.12,0.033]
[1741354282884,60.71041941,145.14,145.12,0.033]
[1741354283077,60.71041941,145.14,145.03,44.16637309]
[1741354283272,0.28432314,145.19,145.0,60.71041941]
[1741354283478,0.28432314,145.19,144.99,60.71041941]
[1741354283690,0.28432314,145.18,145.0,60.71041941]
[1741354283870,18.933972,145.2,145.04,60.71041941]
[1741354284071,20.0,145.15,144.98,1.7881247]
[1741354284267,60.71041941,145.09,145.0,60.71041941]
[1741354284462,20.0,145.15,145.0,60.71041941]
[1741354284686,20.0,145.15,144.98,1.7881247]
[1741354284687,99.64439141,145.16,144.98,1.7881247]
[1741354284892,20.0,145.16,144.98,1.7881247]
[1741354285094,60.71041941,145.11,145.02,60.71041941]
[1741354285262,20.0,145.16,145.01,18.64964886]
[1741354285263,60.71041941,145.09,145.01,18.64964886]
[1741354285587,20.0,145.16,144.98,1.7881247]
[1741354285588,60.71041941,145.05,144.98,1.7881247]
[1741354285804,60.71041941,145.02,144.98,1.7881247]
[1741354286107,0.6897,144.99,144.98,1.7881247]
[1741354286389,0.6897,144.99,144.98,2.47e-05]
[1741354286979,61.40011941,144.99,144.98,2.47e-05]
[1741354287372,61.40011941,144.99,144.82,34.29576218]
[1741354287373,20.0,144.94,144.82,34.29576218]
[1741354287570,20.0,144.94,144.81,0.033]
[1741354287571,0.28432314,144.91,144.85,12.98969147]
[1741354287774,20.0,144.88,144.81,0.033]
[1741354287967,20.0,144.88,144.81,0.0001]
[1741354287968,2.4161,144.86,144.81,0.0001]
[1741354288380,22.4161,144.86,144.81,0.0001]
[1741354288770,2.4161,144.86,144.81,34.21327635]
[1741354288966,0.6903,144.86,144.81,0.0001]
[1741354289388,60.71041941,144.82,144.81,0.0001]
[1741354290199,61.40091941,144.82,144.81,0.0001]
[1741354290371,1.7258,144.86,144.81,0.0001]
[1741354290580,60.71041941,144.83,144.81,0.0001]
[1741354290773,2.4148,144.93,144.81,60.85268098]
[1741354290977,0.6899,144.93,144.86,18.79181043]
[1741354291296,61.40031941,144.95,144.88,18.79181043]
[1741354291477,18.49887498,144.93,144.9,18.79181043]
[1741354291679,60.71041941,144.92,144.82,0.14216157]
[1741354291895,18.49887498,144.93,144.88,0.14216157]
[1741354292072,18.49887498,144.93,144.84,0.14216157]
[1741354292274,12.72387498,144.93,144.91,60.71041941]
[1741354292474,10.4156824,144.94,144.91,60.71041941]
[1741354293094,20.8313648,144.96,144.88,0.21324235]
[1741354293270,20.8313648,144.96,144.95,60.71041941]
[1741354293475,41.74985329,144.99,144.95,60.71041941]
[1741354293675,20.80153939,145.04,144.96,0.14216157]
[1741354293892,20.80153939,145.04,144.91,18.79181043]
[1741354293893,20.80153939,145.04,145.03,45.24304453]
[1741354294096,7.03703939,145.04,145.03,79.64439141]
[1741354294300,6.75283939,145.04,145.03,79.64439141]
[1741354294480,6.61073939,145.04,145.03,18.933972]
[1741354294677,24.59059268,145.06,145.05,0.14216157]
[1741354294976,17.15979268,145.06,145.05,60.85258098]
[1741354295186,17.15979268,145.06,145.05,0.14216157]
[1741354295386,20.0,145.03,144.87,0.21324235]
[1741354295576,21.0348682,145.03,144.93,60.71041941]
[1741354295778,60.71041941,145.0,144.91,60.71041941]
[1741354295982,8.25783518,145.05,144.96,60.71041941]
[1741354296178,8.25783518,145.05,144.92,0.14216157]
[1741354296179,9.29270338,145.05,144.92,0.14216157]
[1741354296396,60.71041941,145.01,144.89,34.6519497]
[1741354296693,8.25783518,145.05,144.92,60.71041941]
[1741354296694,61.74528761,145.0,144.92,60.71041941]
[1741354296900,8.25783518,145.05,144.97,0.14216157]
[1741354297073,1.0348682,145.04,144.97,0.14216157]
[1741354297272,60.71041941,145.03,144.91,0.14216157]
[1741354297472,8.25783518,145.05,144.95,0.14216157]
[1741354297473,1.0348682,145.02,144.95,0.14216157]
[1741354297808,1.0348682,145.04,144.97,0.14216157]
[1741354298096,8.1761113,145.05,145.04,20.0]
[1741354298305,60.71041941,145.35,145.06,0.42648471]
[1741354298306,60.71041941,145.2,145.06,0.42648471]
[1741354298485,149.28,145.34,145.09,0.14216157]
[1741354298486,1.0348682,145.33,145.09,0.14216157]
[1741354298693,1.0648682,145.31,145.16,0.14216157]
[1741354298990,1.0648682,145.31,145.23,60.71041941]
[1741354299202,60.71041941,145.28,145.18,0.14216157]
[1741354299388,60.71041941,145.26,145.2,0.14216157]
[1741354299579,60.71041941,145.22,145.2,0.14216157]
[1741354299791,0.03,145.31,145.2,0.14216157]
[1741354299792,60.71041941,145.24,145.2,0.14216157]
[1741354299975,1.0648682,145.31,145.18,0.14216157]
[1741354300396,0.03,145.31,145.25,0.14216157]
[1741354300597,20.03,145.31,145.27,0.14216157]
[1741354300798,60.71041941,145.28,145.19,1.25943345]
[1741354300995,1.0348682,145.27,145.18,60.71041941]
[1741354301201,60.71041941,145.28,145.21,0.14216157]
[1741354301493,1.0348682,145.27,145.21,0.14216157]
[1741354301799,0.03,145.25,145.14,60.71041941]
[1741354302017,0.03,145.25,145.03,1.03320966]
[1741354302018,60.71041941,145.17,145.03,1.03320966]
[1741354302299,0.28432314,145.24,145.09,60.71041941]
[1741354302300,1.31919134,145.24,145.09,60.71041941]
[1741354302513,60.71041941,145.17,145.08,60.71041941]
[1741354302811,1.0348682,145.22,145.1,60.71041941]
[1741354302981,60.71041941,145.2,145.13,0.14216157]
[1741354303187,1.0348682,145.22,145.14,0.14216157]
[1741354303379,1.0648682,145.25,145.14,0.14216157]
[1741354303584,1.0648682,145.25,145.18,0.14216157]
[1741354303807,1.0648682,145.25,145.2,0.14216157]
[1741354303808,0.03,145.25,145.2,0.14216157]
[1741354304103,0.03,145.25,145.23,0.14216157]
[1741354304478,1.0348682,145.36,145.23,0.14216157]
[1741354304683,60.71041941,145.27,145.13,34.9255088]
[1741354304998,1.0348682,145.3,145.2,35.07344053]
[1741354305200,60.71041941,145.3,145.23,0.14216157]
[1741354305401,60.71041941,145.28,145.23,0.14216157]
[1741354305606,60.71041941,145.28,145.2,0.14216157]
[1741354305781,60.71041941,145.28,145.13,34.9255088]
[1741354305782,60.71041941,145.21,145.13,34.9255088]
[1741354305981,60.71041941,145.23,145.14,34.49742249]
[1741354306199,60.71041941,145.21,145.13,60.71041941]
[1741354306389,60.71041941,145.21,145.12,0.21324235]
[1741354306390,60.71041941,145.19,145.12,0.21324235]
[1741354306590,1.0348682,145.24,145.12,0.21324235]
[1741354306903,21.0348682,145.24,145.12,87.7899346]
[1741354307083,13.62237015,145.39,145.13,3.0332293]
[1741354307283,2.03,145.46,145.22,0.14216157]
[1741354307284,53.28473652,145.29,145.22,0.14216157]
[1741354307684,53.28473652,145.24,145.14,1.25986732]
[1741354307984,20.0,145.25,145.14,53.28473652]
[1741354308192,53.28473652,145.2,145.11,53.28473652]
[1741354308395,53.28473652,145.12,145.05,53.28473652]
[1741354308597,53.28473652,145.14,145.06,53.28473652]
[1741354308803,53.28473652,145.25,145.13,53.28473652]
[1741354308993,0.8927682,145.24,145.18,0.14216157]
[1741354309190,53.28473652,145.2,145.07,1.26047523]
[1741354309523,0.8927682,145.24,145.15,53.28473652]
[1741354309684,0.8927682,145.28,145.16,0.14216157]
[1741354309990,53.28473652,145.22,145.14,87.93656371]
[1741354310309,0.8927682,145.21,145.14,88.07872528]
[1741354310717,53.28473652,145.23,145.16,53.28473652]
[1741354310918,0.8927682,145.25,145.18,0.14216157]
[1741354311120,53.28473652,145.28,145.22,0.14216157]
[1741354311422,0.8927682,145.27,145.22,0.14216157]
[1741354311617,53.28473652,145.28,145.19,53.28473652]
[1741354311827,0.03,145.31,145.2,1.45944673]
[1741354311986,0.03,145.31,145.27,0.14216157]
[1741354312190,0.03,145.31,145.29,0.14216157]
[1741354312386,53.31473652,145.31,145.21,0.14216157]
[1741354312601,53.28473652,145.29,145.21,0.14216157]
[1741354312890,0.9227682,145.31,145.26,0.14216157]
[1741354313105,54.20750472,145.31,145.26,0.14216157]
[1741354313413,0.03,145.31,145.2,0.28432314]
[1741354313710,0.03,145.31,145.2,0.14216157]
[1741354314211,0.8927682,145.3,145.24,53.28473652]
[1741354314394,0.7181,145.31,145.27,0.14216157]
[1741354314603,0.03,145.31,145.27,0.14216157]
[1741354314915,0.03,145.31,145.2,18.64964886]
[1741354314916,0.9227682,145.31,145.2,0.14216157]
[1741354315205,53.28473652,145.28,145.17,0.14216157]
[1741354315386,53.28473652,145.24,145.16,53.28473652]
[1741354315585,53.28473652,145.24,145.15,0.21324235]
[1741354315586,0.8927682,145.23,145.15,0.21324235]
[1741354315822,53.28473652,145.22,145.15,0.21324235]
[1741354315992,53.28473652,145.22,145.03,6.8951]
[1741354315993,0.8927682,145.21,145.03,6.8951]
[1741354316193,2.4109,145.17,145.09,53.28473652]
[1741354316407,53.28473652,145.15,145.07,53.28473652]
[1741354316608,0.8927682,145.14,145.03,0.21324235]
[1741354316806,54.17750472,145.16,145.09,53.28473652]
[1741354317016,53.28473652,145.28,145.03,7.10824235]
[1741354317017,0.8927682,145.23,145.16,0.14216157]
[1741354317197,0.8927682,145.25,145.18,0.14216157]
[1741354317513,53.28473652,145.23,145.15,53.28473652]
[1741354317809,18.933972,145.29,145.2,53.28473652]
[1741354318009,22.4087,145.3,145.21,0.14216157]
[1741354318010,0.8927682,145.28,145.21,0.14216157]
[1741354318197,2.4094,145.26,145.21,0.14216157]
[1741354318398,19.54241706,145.25,145.06,19.68265064]
[1741354318603,18.64964886,145.24,145.14,53.28473652]
[1741354318786,53.28473652,145.2,145.12,53.28473652]
[1741354318987,0.8927682,145.21,145.09,0.14216157]
[1741354319201,18.64964886,145.15,145.06,2.29382569]
[1741354319492,18.64964886,145.13,145.05,53.28473652]
[1741354319796,53.28473652,145.12,145.03,0.21324235]
[1741354319998,53.28473652,145.14,145.06,53.28473652]
[1741354320197,0.8927682,145.13,145.03,0.21324235]
[1741354320399,0.8927682,145.16,145.1,53.28473652]
[1741354320601,53.28473652,145.12,145.03,0.21324235]
[1741354320802,53.28473652,145.08,144.93,34.30281381]
[1741354320993,18.64964886,145.04,144.92,1.06717661]
[1741354321195,18.64964886,145.04,144.92,0.033]
[1741354321196,53.28473652,145.0,144.92,0.033]
[1741354321412,0.8927682,144.99,144.92,0.033]
[1741354321611,18.64964886,145.01,144.97,53.28473652]
[1741354321814,0.8927682,145.08,144.99,53.28473652]
[1741354321999,18.65547688,145.18,144.92,42.66569357]
[1741354322000,0.8927682,145.17,145.07,53.28473652]
[1741354322204,0.8927682,145.17,145.08,0.14216157]
[1741354322205,0.6889,145.16,145.08,0.14216157]
[1741354322403,0.8927682,145.23,145.14,0.14216157]
[1741354322593,53.28473652,145.18,145.14,0.14216157]
[1741354322795,0.8927682,145.17,145.14,0.14216157]
[1741354322995,2.4101,145.22,145.14,0.14216157]
[1741354322996,53.28473652,145.21,145.14,0.14216157]
[1741354323212,0.28432314,145.14,145.01,20.0]
[1741354323401,4.1316,145.22,144.99,1.26117072]
[1741354323402,53.28473652,145.09,144.99,1.26117072]
[1741354323708,53.28473652,145.09,144.98,0.21324235]
[1741354323709,20.0,145.15,144.98,0.21324235]
[1741354323927,53.28473652,145.1,145.01,53.28473652]
[1741354324227,18.64964886,145.17,145.06,53.28473652]
[1741354324524,18.64964886,145.06,144.98,0.21324235]
[1741354324696,18.64964886,145.06,144.88,34.47782468]
[1741354324697,53.28473652,145.02,144.88,34.47782468]
[1741354324905,71.93438538,144.99,144.87,0.21324235]
[1741354325100,0.28432314,145.09,144.94,53.28473652]
[1741354325402,18.64964886,145.1,145.02,53.28473652]
[1741354325403,0.8927682,145.1,145.02,53.28473652]
[1741354325612,53.28473652,145.1,144.97,0.28432314]
[1741354325919,0.8927682,145.09,144.96,312.0]
[1741354326109,53.28473652,145.02,144.92,0.033]
[1741354326413,53.97423652,145.03,144.96,53.28473652]
[1741354326602,53.28473652,145.05,144.97,0.14216157]
[1741354326791,53.28473652,145.1,145.02,53.28473652]
[1741354326997,0.6889,145.14,145.07,0.14216157]
[1741354327215,0.8927682,145.13,145.07,0.14216157]
[1741354327393,0.8927682,145.24,145.13,0.14216157]
[1741354327722,53.28473652,145.29,145.21,0.14216157]
[1741354327921,0.8927682,145.28,145.23,0.14216157]
[1741354328132,0.8927682,145.29,145.23,0.14216157]
[1741354328309,0.6883,145.28,145.23,0.14216157]
[1741354328498,52.78014708,145.27,145.23,0.14216157]
[1741354328826,0.9227682,145.27,145.2,51.88737888]
[1741354329026,0.03,145.27,145.21,0.14216157]
[1741354329200,0.03,145.27,145.23,0.14216157]
[1741354329523,0.03,145.27,145.25,0.14216157]
[1741354329724,0.03,145.27,145.26,52.02954045]
[1741354330298,0.03,145.31,145.27,0.42648471]
[1741354330506,0.03,145.31,145.3,52.02954045]
[1741354331013,0.03,145.31,145.3,0.42648471]
[1741354331212,0.03,145.31,145.3,105.23307692]
[1741354331519,0.03,145.31,145.3,0.14216157]
[1741354331698,0.03,145.31,145.3,52.02954045]
[1741354332014,0.03,145.31,145.23,20.21324235]
[1741354332015,0.03,145.31,145.23,0.21324235]
[1741354332201,71.45979594,145.31,145.23,0.21324235]
[1741354332519,18.64964886,145.28,145.2,51.88737888]
[1741354332818,18.64964886,145.3,145.2,51.88737888]
[1741354333114,0.7181,145.31,145.24,51.88737888]
[1741354333300,0.03,145.31,145.25,0.14216157]
[1741354333502,18.67964886,145.31,145.25,52.02954045]
[1741354333702,0.03,145.31,145.25,52.02954045]
[1741354333905,51.88737888,145.3,145.17,20.0]
[1741354334107,19.54241706,145.29,145.18,51.88737888]
[1741354334306,19.54241706,145.29,145.12,1.2459355]
[1741354334307,18.64964886,145.27,145.12,1.2459355]
[1741354334518,0.6883,145.28,145.22,51.88737888]
[1741354334721,20.0,145.36,145.25,0.14216157]
[1741354335035,18.64964886,145.25,145.13,1.25995412]
[1741354335244,51.88737888,145.24,145.16,51.88737888]
[1741354335406,51.88737888,145.24,145.13,1.25995412]
[1741354335407,18.64964886,145.28,145.13,1.25995412]
[1741354335607,20.0,145.33,145.18,51.88737888]
[1741354335832,51.88737888,145.24,145.13,1.25995412]
[1741354336030,0.8927682,145.23,145.16,51.88737888]
[1741354336235,51.88737888,145.26,145.18,51.88737888]
[1741354336403,51.88737888,145.27,145.18,51.88737888]
[1741354336609,18.64964886,145.28,145.18,51.88737888]
[1741354336810,2.4087,145.3,145.14,51.88737888]
[1741354336811,51.88737888,145.22,145.14,51.88737888]
[1741354337034,0.8927682,145.21,145.14,51.88737888]
[1741354337244,2.4087,145.3,145.2,51.88737888]
[1741354337554,0.6882,145.3,145.25,0.14216157]
[1741354337729,0.6881,145.32,145.27,52.02954045]
[1741354338045,0.688,145.34,145.27,52.02954045]
[1741354338214,51.88737888,145.33,145.22,0.14216157]
[1741354338418,53.46824708,145.32,145.25,0.14216157]
[1741354338716,0.6881,145.32,145.28,0.14216157]
[1741354338947,0.688,145.34,145.28,0.14216157]
[1741354339145,51.88737888,145.29,145.28,0.14216157]
[1741354339324,0.688,145.34,145.28,0.14216157]
[1741354339537,52.57537888,145.34,145.28,0.14216157]
[1741354339848,0.8927682,145.33,145.28,0.14216157]
[1741354340148,51.88737888,145.32,145.28,0.14216157]
[1741354340354,51.88737888,145.3,145.28,0.14216157]
[1741354340555,51.88737888,145.3,145.27,4.555325]
[1741354340757,51.88737888,145.28,145.27,4.555325]
[1741354340954,52.78014708,145.28,145.27,2.5e-05]
[1741354341239,71.42979594,145.28,145.27,2.5e-05]
[1741354341818,18.64964886,145.3,145.27,2.5e-05]
[1741354342023,51.88737888,145.29,145.27,2.5e-05]
[1741354342233,19.54241706,145.28,145.27,2.5e-05]
[1741354342430,20.23071706,145.28,145.27,2.5e-05]
[1741354343343,0.6883,145.28,145.27,2.5e-05]
[1741354343530,19.33794886,145.28,145.27,2.5e-05]
[1741354343952,19.622272,145.28,145.27,2.5e-05]
[1741354344247,1.5810682,145.28,145.27,2.5e-05]
[1741354344455,0.6883,145.28,145.27,2.5e-05]
[1741354344652,19.33794886,145.28,145.27,2.5e-05]
[1741354345158,0.8927682,145.29,145.24,2.5e-05]
[1741354345352,51.88737888,145.29,145.24,2.5e-05]
[1741354345656,55.18884708,145.3,145.24,2.5e-05]
[1741354345835,51.88737888,145.26,145.24,2.5e-05]
[1741354346030,0.8927682,145.25,145.24,2.5e-05]
[1741354346240,51.88737888,145.27,145.24,2.5e-05]
[1741354346440,0.8927682,145.29,145.24,2.5e-05]
[1741354346754,51.88737888,145.29,145.24,2.5e-05]
[1741354347140,0.7181,145.32,145.25,0.14216157]
[1741354347354,0.03,145.32,145.27,0.14216157]
[1741354347952,0.03,145.32,145.27,52.02954045]
[1741354348157,0.03,145.32,145.29,0.14216157]
[1741354348532,51.88737888,145.31,145.24,0.21326735]
[1741354348731,51.88737888,145.27,145.24,2.5e-05]
[1741354348927,51.88737888,145.25,145.24,2.5e-05]
[1741354349625,20.0,145.25,145.24,2.5e-05]
[1741354349826,0.8927682,145.25,145.24,2.5e-05]
[1741354350026,18.64964886,145.25,145.24,2.5e-05]
[1741354350256,70.53702774,145.25,145.24,2.5e-05]
[1741354350457,52.57577888,145.25,145.24,2.5e-05]
[1741354350940,18.64964886,145.21,145.13,0.21324235]
[1741354351142,51.88737888,145.18,145.1,51.88737888]
[1741354351347,51.88737888,145.13,145.07,34.70423631]
[1741354351525,51.88737888,145.1,145.02,0.21324235]
[1741354351725,18.64964886,145.13,145.02,0.21324235]
[1741354351726,51.88737888,145.06,145.02,0.21324235]
[1741354351926,51.88737888,145.18,145.01,10.2340168]
[1741354351927,51.88737888,145.04,145.01,10.2340168]
[1741354352131,51.88737888,145.07,145.01,10.2340168]
[1741354352372,51.88737888,145.1,145.02,51.88737888]
[1741354352529,51.88737888,145.08,145.01,10.2340168]
[1741354352735,51.88737888,145.1,145.03,51.88737888]
[1741354352960,0.8927682,145.09,145.01,10.2340168]
[1741354353256,51.88737888,145.08,145.01,96.95829969]
[1741354353447,51.88737888,145.07,145.01,45.07092081]
[1741354353647,2.4115,145.13,145.03,51.88737888]
[1741354353648,51.88737888,145.11,145.03,51.88737888]
[1741354353849,1.5814682,145.19,145.1,52.02954045]
[1741354354046,1.5814682,145.19,145.15,0.14216157]
[1741354354047,0.8927682,145.19,145.15,0.14216157]
[1741354354359,0.8927682,145.2,145.15,0.14216157]
[1741354354555,0.6886,145.22,145.14,0.14216157]
[1741354354758,1.5812682,145.24,145.19,0.14216157]
[1741354354964,0.8927682,145.29,145.22,51.88737888]
[1741354355169,0.8927682,145.29,145.19,0.14216157]
[1741354355170,0.03,145.32,145.28,0.14216157]
[1741354355346,0.03,145.32,145.3,0.14216157]
[1741354355546,0.03,145.32,145.31,52.02954045]
[1741354355862,0.03,145.32,145.31,0.14216157]
[1741354356229,51.91737888,145.32,145.31,0.14216157]
[1741354356429,20.0,145.28,145.19,0.21324235]
[1741354356659,20.0,145.28,145.13,17.2259]
[1741354356660,20.0,145.22,145.05,149.06]
[1741354356831,51.88737888,145.17,145.1,51.88737888]
[1741354357029,19.54241706,145.21,145.06,9.40069785]
[1741354357030,51.88737888,145.14,145.06,1.47380448]
[1741354357254,52.78014708,145.13,145.01,6.896]
[1741354357458,51.88737888,145.1,145.0,0.033]
[1741354357779,51.88737888,145.09,145.0,0.033]
[1741354357961,0.8927682,145.08,145.0,0.033]
[1741354358159,51.88737888,145.07,145.0,0.033]
[1741354358361,51.88737888,145.05,145.0,0.033]
[1741354358573,0.6894,145.05,145.0,0.033]
[1741354358759,0.28432314,145.17,145.0,0.033]
[1741354358968,19.54241706,145.14,145.06,51.88737888]
[1741354359282,71.42979594,145.14,145.06,51.88737888]
[1741354359493,71.42979594,145.14,145.0,312.033]
[1741354359494,51.88737888,145.11,145.0,312.033]
[1741354359663,51.88737888,145.13,145.05,0.14216157]
[1741354359864,0.8927682,145.14,145.07,0.14216157]
[1741354360062,51.88737888,145.11,145.0,0.033]
[1741354360266,0.8927682,145.1,145.0,0.033]
[1741354360471,51.88737888,145.13,145.0,0.033]
[1741354360776,1.5812682,145.23,145.12,0.14216157]
[1741354360978,3.3026682,145.23,145.1,0.21324235]
[1741354361178,20.0,145.21,145.11,52.02954045]
[1741354361506,51.88737888,145.22,145.15,51.88737888]
[1741354361787,51.88737888,145.22,145.11,52.02954045]
[1741354361788,0.8927682,145.21,145.11,52.02954045]
[1741354362088,52.78014708,145.21,145.14,0.14216157]
[1741354362289,18.64964886,145.2,145.13,0.14216157]
[1741354362476,2.4099,145.23,145.13,0.14216157]
[1741354362477,18.64964886,145.18,145.13,0.14216157]
[1741354362687,0.6888,145.17,145.13,0.14216157]
[1741354362978,1.5815682,145.17,145.11,0.14216157]
[1741354363172,0.8927682,145.16,145.1,52.10062123]
[1741354363376,0.8927682,145.16,145.11,0.14216157]
[1741354363556,0.8927682,145.2,145.11,0.14216157]
[1741354363752,51.88737888,145.17,145.11,0.14216157]
[1741354363976,70.53702774,145.15,145.11,0.14216157]
[1741354364175,0.8927682,145.14,145.0,1.0665084]
[1741354364377,0.8927682,145.14,145.0,0.033]
[1741354364378,70.53702774,145.13,145.0,0.033]
[1741354364573,0.6892,145.09,145.0,0.033]
[1741354364754,1.5819682,145.09,145.02,51.88737888]
[1741354364966,0.8927682,145.09,145.03,51.88737888]
[1741354365162,70.53702774,145.08,145.0,0.033]
[1741354365387,0.8927682,145.07,145.01,0.14216157]
[1741354365760,0.8927682,145.07,145.0,51.92037888]
[1741354366081,51.88737888,145.03,145.0,0.033]
[1741354366269,70.53702774,145.01,145.0,0.033]
[1741354366468,70.53702774,145.01,144.99,0.033]
[1741354366667,6.3524,145.07,144.99,0.033]
[1741354366668,20.23201706,145.0,144.99,0.033]
[1741354366985,18.64964886,144.99,144.92,0.24624235]
[1741354367299,0.6896,145.0,144.96,0.14216157]
[1741354367580,0.6896,145.0,144.92,0.24624235]
[1741354367780,51.88737888,144.97,144.92,0.033]
[1741354367985,51.88737888,144.95,144.92,0.033]
[1741354368290,0.8927682,144.94,144.92,0.033]
[1741354368497,52.78014708,144.94,144.92,0.033]
[1741354368780,18.64964886,144.92,144.87,0.033]
[1741354368982,52.78014708,144.91,144.87,0.033]
[1741354369282,70.53702774,144.88,144.87,0.033]
[1741354369484,70.53702774,144.88,144.86,0.033]
[1741354369485,18.64964886,144.87,144.86,0.033]
[1741354369686,71.88737888,144.85,144.69,2.00136705]
[1741354369861,90.53702774,144.82,144.69,53.88874593]
[1741354370055,91.42979594,144.82,144.69,1.7881247]
[1741354370256,51.88737888,144.79,144.69,1.7881247]
[1741354370464,51.88737888,144.73,144.69,1.7881247]
[1741354370661,20.691,144.71,144.69,1.7881247]
[1741354370964,18.64964886,144.74,144.69,1.7881247]
[1741354370965,0.28432314,144.74,144.69,1.7881247]
[1741354371280,13.9052,144.77,144.7,51.88737888]
[1741354371481,13.9052,144.77,144.69,1.7881247]
[1741354371993,51.88737888,144.73,144.69,1.7881247]
[1741354372214,18.64964886,144.71,144.69,1.7881247]
[1741354372405,70.53702774,144.7,144.69,1.7881247]
[1741354372601,20.0,144.66,144.51,1.03726297]
[1741354372900,51.88737888,144.61,144.53,51.88737888]
[1741354373090,2.419,144.68,144.48,51.88737888]
[1741354373091,0.28432314,144.62,144.51,51.88737888]
[1741354373275,51.88737888,144.62,144.45,1.03791464]
[1741354373602,51.88737888,144.59,144.42,210.49392449]
[1741354373898,20.0,144.59,144.43,1.03805946]
[1741354374100,9.3308,144.68,144.44,1.03809753]
[1741354374282,20.0,144.65,144.55,51.88737888]
[1741354374488,51.88737888,144.61,144.48,51.88737888]
[1741354374797,18.64964886,144.58,144.48,51.88737888]
[1741354374985,51.88737888,144.54,144.42,203.57012449]
[1741354375187,18.64964886,144.55,144.34,255.45750337]
[1741354375188,51.88737888,144.51,144.41,1.7881247]
[1741354375379,51.88737888,144.49,144.41,1.7881247]
[1741354375583,51.88737888,144.55,144.41,1.7881247]
[1741354375584,0.28432314,144.52,144.41,1.7881247]
[1741354375800,20.0,144.47,144.41,1.7881247]
[1741354376087,20.0,144.52,144.41,1.7881247]
[1741354376286,18.933972,144.51,144.41,1.7881247]
[1741354376476,20.0,144.52,144.41,1.7881247]
[1741354376684,12.4817,144.59,144.41,1.7881247]
[1741354376685,51.88737888,144.54,144.41,60.60010358]
[1741354377023,12.4817,144.59,144.52,0.14216157]
[1741354377178,51.88737888,144.57,144.52,0.14216157]
[1741354377518,18.64964886,144.56,144.45,0.14216157]
[1741354377681,20.0,144.53,144.41,1.7881247]
[1741354377883,51.88737888,144.5,144.43,51.88737888]
[1741354378209,18.64964886,144.53,144.41,1.7881247]
[1741354378499,18.64964886,144.58,144.5,0.14216157]
[1741354378700,12.4817,144.59,144.55,0.14216157]
[1741354379016,12.4817,144.59,144.53,0.14216157]
[1741354379304,6.4265,144.62,144.58,52.02954045]
[1741354379481,6.4265,144.62,144.59,52.02954045]
[1741354379682,13.3029,144.69,144.55,0.14216157]
[1741354379919,51.88737888,144.68,144.61,52.02954045]
[1741354380127,51.88737888,144.68,144.61,0.14216157]
[1741354380412,13.994,144.69,144.52,0.28432314]
[1741354380413,13.3029,144.69,144.66,0.14216157]
[1741354380721,13.3029,144.69,144.58,0.42648471]
[1741354380885,12.5942,144.78,144.68,52.02954045]
[1741354381082,12.5942,144.78,144.73,0.14216157]
[1741354381320,58.61957888,144.83,144.78,0.14216157]
[1741354381321,6.7322,144.83,144.78,0.14216157]
[1741354381686,0.14216157,144.82,144.66,0.21324235]
[1741354381886,6.7322,144.83,144.74,51.88737888]
[1741354382087,6.7322,144.83,144.69,0.14216157]
[1741354382290,7.4226,144.83,144.69,312.0]
[1741354382496,18.933972,144.82,144.67,0.14216157]
[1741354382786,18.64964886,144.76,144.66,0.21324235]
[1741354382982,18.64964886,144.72,144.55,51.88737888]
[1741354383204,152.0569,144.81,144.62,51.88737888]
[1741354383205,0.14216157,144.8,144.62,51.88737888]
[1741354383419,20.0,144.8,144.7,0.14216157]
[1741354383608,71.88737888,144.8,144.74,0.14216157]
[1741354383807,6.7322,144.83,144.78,0.14216157]
[1741354384111,0.04052939,144.86,144.79,0.14216157]
[1741354384410,0.04052939,144.86,144.82,51.88737888]
[1741354384595,19.33994886,144.85,144.79,0.14216157]
[1741354384790,0.28432314,144.84,144.64,7.12684235]
[1741354384987,13.1805,144.81,144.64,0.21324235]